{"text_format":"2","workbook":"xlsx","n_sheets":2,"sheets":["Items","Summary"],"not_rendered":{"charts":0,"images":0,"macros":0,"external_links":0,"defined_names":3,"comments":0,"pivot_tables":0},"unopened":[],"bounds":{"document_bytes":16777216,"sheet_cells":100000,"run_cost":"one","rows_first":2000,"rows_last":500,"rows_between":2000,"halvings":0,"cell_chars":16384,"cell_head_chars":4096},"cells_cut":0,"cells_raw":0,"read":"whole","date_system":"1900"}

{"sheet":"Items","index":0,"n_rows":455,"n_cols":6,"rows_kept":455,"cut":false,"hidden":false,"merged":[[0,0,0,5]]}
["UNITED NATIONS DEVELOPMENT PROGRAMME\nSUR BAHER SCHOOL\nREVISED BILL OF QUANTITIES"]
["Item ","Description ","Unit ","Quantity","Unit Price \n(US$)","Total Price \n(US$)"]
[null,"In all items, the contractor shall provide shopdrawings for the works\nThe contractor must coordinate with all the authority departments involved in Tofes 4 approvals.\nThe contractor shall coordinate with the local authorities at his own cost and shall satisfy the conditions requested by them.\nThe contractor shall take all safety measures as per the local standards\nThe contractor shall clean the site after the completion of works\nthe contractor shall provide as built drawings (Architectural, structural, mechanical and electrical)\nThe contractor must install steel fence around the site area with the warning signs and proper gate as per municipal regulations at his own cost.\nThe contractor shall bring samples for every items to get an approval from the owner."]
[null,"1- Demolition and Excavation Works"]
[null,"The contractor, shall when pricing the rates of this bill take into consideration all costs incurred upon him and allow for the cost and expenses of all requirements stipulated in the special specifications, preambles, drawings and general specifications of the contract, and whatever necessary to complete the work according to engineer’s requirements and specifications. Prices shall include removing the debris and throwing all of it outside the site in a legal manner. "]
[1.1000000000000001,"Dismantle the existing floor tiles in building 2 and where specified on drawings. The job includes the removal of fill below the tiles until reaching the slab. The price also includes removing all the wires, electrical conduits and pipes if existed. All the debris must be thrown away in a legal manner according to engineer's instructions.","Sq.m",240,null,{"$f":"SUM(D6*E6)","v":0}]
[1.2,"Demolition of existing  walls of any type and any thickness. The job also includes removing the wall tiles, stone, wood and any other material if existed. The price also includes removing all the wires, electrical conduits and pipes if existied. The job includes removing all debris outside the site in a legal manner and throwing it away to an approved place. according to engineer's instructions.","Sq.m",170,null,{"$f":"SUM(D7*E7)","v":0}]
[1.3,"Ditto, but for the balcony and roof parapets where indicated on drawings.","Sq.m",120,null,0]
[1.4,"Demolition of existing walls to open windows and doors. The job includes cutting through the walls using an electric saw to cut the walls neatly and accurately then demolish the wall. The job also includes removing all the debris outside the site in a legal manner in an approved place. All according to instructions given by the engineer.","Sq.m",10,null,0]
[1.5,"Demolition of existing concrete stair flights and landing connecting the third floor and the roof where specified in the drawings. The price includes removing all the debris and throwing it away outside the site in a legal manner. All according to instructions given by the engineer.","Job",1,null,0]
[1.6,"Excavation in the ground floor for the new walls foundations until reaching the required level. The excavation must be done without affecting the existing columns or walls or the existing footings. The price includes remoing the slab on grade. The job includes removing all the debris outside the site in a legal manner and throwing it away to an approved place. All according to instructions given by the engineer.","m3",75,null,0]
[1.7,"Open slab where specified on drawings. The job includes cutting through the slab using a special saw to cut the slab neatly and according to measurments. The job also includes removing all the debris outside the site in a legal manner and throwing it away to an approved place. The contractor shall mark the opening boundaries with the supervising engineer in site prior the cutting. All according to instructions given by the engineer.","Sq.m",60,null,0]
[1.8,"Removal of the existing doors and windows of any type where specified on the drawings. The job includes removing the frames. The job also includes dumping all the debris outside the site in a legal manner and throwing it away to an approved place. according to the engineer's instructions.","Job",1,null,0]
[1.9,"Dismantle and removal of all bathrooms fixtures. The price includes removing all the batteries, pipes, and all sanitary fixtures. the price also includes removing all the wall tiles. The price includes throwing away all the debris outside the site in a legal manner. All according to instructions given by the engineer.","Job",1,null,0]
[1.1000000000000001,"Dismantle and removal of all false ceiling in all rooms in building 2. the price includes removing the gypsum and the structure of the false ceiling and all its accessories with all the electrical cables and conduits hanging from the ceilings. The price includes throwing away all the debris outside the site in a legal manner and throwing it away to an approved place. All according to instructions given by the engineer.","Sq.m",200,null,0]
[1.1100000000000001,"Dismantle and removal of all electrical fixtures such as lights, cameras, sockets, wires..etc. The price includes removing all the cables and conduits and throwing them away outside the site in a legal manner. All according to instructions given by the engineer.","Job",1,null,0]
[1.1200000000000001,"Dismantle and removal of all electrical and mechanical fixtures on the roof such as satellites, tanks, boilers, cables, wires and conduits and throwing them outside the site in a legal manner. All according to instructions given by the engineer.","Job",1,null,0]
[1.1299999999999999,"Clean and remove all the rock and soil debris in the site, all the debris and rubbish in both buildings in all floors and all the grass in the site outside. The price includes removing all the debris outside the site in a legal manner. All according to instructions given by the engineer.","Job",1,null,0]
[1.1399999999999999,"Excavation for the retaining wall where indicated on the drawings. Included in the excavation works is the removal of the reinforced concrete works, any kind of silt and stone or whatever combination is in the foundation area. The job includes removing all the debris outside the site in a legal manner and throwing it away to an approved place. All according to instructions given by the engineer.","m3",110,null,{"$f":"SUM(D19*E19)","v":0}]
[null,"To Collection",null,null,null,{"$f":"SUM(F6:F19)","v":0}]
[null,"2- Concrete Works"]
[null,"The contractor, shall when pricing the rates of this bill take into consideration all costs incurred upon him and allow for the cost and expenses of all requirements stipulated in the special specifications, preambles, drawings and general specifications of the contract, and whatever necessary to complete the work according to engineer’s requirements and specifications. Prices should include all formwork, scaffolding, equipment, material, workmanship, casting, and curing of all concrete elements of the project. \nTechnical specifications of concrete mixes and steel reinforcement should be according to local standards and prices will include testing of samples as needed from an approved israeli laboratory, prior to installation and/ or pouring, in addition to standard procedure of testing according to local authority regulations.\nRates also include coordination with electro-mechanical works.\nRates for Reinforced Concrete items include Steel Reinforcement. The steel reinforcement is as per drawings."]
[2.1,"Supply and cast reinforced concrete (R.C.) Grade B 300 including all necessary formwork, reinforcement complete as shown on drawings and as per specifications. "]
["2.1.1","Reinforced concerte (R.C.)  for slab on grade for the terrace on the first floor, including 1mm thick polyethylene sheets. Slab thickness 10-cm as per drawings and specifications. The price includes a steel mesh 8mm every 20 cm. The price includes supplying and applying 40 cm rubble (Ytong block) fill to increase the level of the terrace where specified on the drawings and as per the detail.\nFinal finish should be mechanical steel trowelled with special colour as per engineers instructions.  ","Sq.m",60,null,{"$f":"SUM(D24*E24)","v":0}]
["2.1.2","Ditto, but for (RC) foundations including pad footings, tie beams, raft foundations and strip footings of all thicknesses and dimensions for all.","m3",120,null,{"$f":"SUM(D25*E25)","v":0}]
["2.1.3","Reinforced walls of thickness (20) cm ","Sq.m",380,null,{"$f":"SUM(D26*E26)","v":0}]
["2.1.4","Ditto, but for retaining wall as per details and schedules","Sq.m",400,null,{"$f":"SUM(D27*E27)","v":0}]
["2.1.5","Ditto, but for (RC) solid slab (200) mm overall thickness. The price includes a bottom steel mesh ϕ14 every 10 cm in both directions and an upper steel mesh ϕ14 every 20 cm in both directions. The price includes the steel anchoring with the existing slab with epoxy or other material approved by the engineer.","Sq.m",60,null,{"$f":"SUM(D28*E28)","v":0}]
["2.1.6","Reinforced concrete (R.C.) Grade B 300  for slab on grade for the ground floor shelter area, including 1mm thick polyethylene sheets. Slab thickness 10-cm as per drawings and specifications. The price includes a steel mesh 14mm every 10 cm. All according to instructions given by the supervising engineer.","Sq.m",16,null,{"$f":"SUM(D29*E29)","v":0}]
[null,"To Collection",null,null,null,{"$f":"SUM(F23:F29)","v":0}]
[null,"3- Block & Stone works"]
[3,"Hollow Cement Blocks\nConstruct hollow cement blocks bedded & jointed in cement aggregate mortar (1:3) to be used as partitions  10 cm  thick. Work includes assembling of door frames in block wall openings as directed. Block strength not to be less than 35 kg/cm2. The price includes reinforced concrete lintels (20 *10)cm, with 4 Ф10mm steel reinforcement. Lintels will be poured all along the block walls immediately above door openings at 2.2 m height, using formwork as directed by engineer. The price also includes supplying and installing 2 cm thick wooden subframes for the doors."]
[3.1,"10 cm thick for walls and internal partitions","Sq.m",430,null,{"$f":"SUM(D33*E33)","v":0}]
[3.2,"20 cm thick for walls ","Sq.m",125,null,{"$f":"SUM(D34*E34)","v":0}]
[3.3,"7 cm thick for external walls insulation. The price include supplying and installing 2 cm Kalkal panels between the block and wall.","Sq.m",520,null,{"$f":"SUM(D35*E35)","v":0}]
[3.4,"Supply and install a 1 meter high stone parapet thickness 20 cm where indicated on drawings. the stone shall be 5 cm with 15 cm concrete backfilling. The concrete shall include a steel mesh 8mm every 20 cm and the stone shall be connected to the steel mesh. The price includes a 5 cm stone coping. The price includes pointing the stone with white cement and sand 1:3. The price includes the formwork, steel works, equipments and material and whatever needed to complete the job. All according to drawings and instructions given by the engineer.","Sq.m",100,null,{"$f":"SUM(D36*E36)","v":0}]
[3.5,"Supply and apply stone pointing for building 1. The pointing shall be done with white cement and sand (1:3). The price includes cleaning between the stones completely and applying water then pointing. The price includes cleaning the stone from the material after the pointing works. The job includes pointing the sills, lintels, copings..etc. Measurments are taken for the area of the facades and deducting the openings. All according to instructions given by the engineer.","Sq.m",600,null,{"$f":"SUM(D37*E37)","v":0}]
[null,"To Collection",null,null,null,{"$f":"SUM(F33:F37)","v":0}]
[null,"4- Plastering Works"]
[4.0999999999999996,"Supply & apply plastering for concrete & block walls. Use sand cement render to plaster walls:3 coats 2cm thick, textured coat, main coat with lime, sand, and black cement, making good around door & window frames.\nWork includes galvanized expanded metal lathe (wire mesh) over all pipes and conduits, across width of pipe area with 10-cm more on either side and along whole length of the concrete/block joints. \nAngle beads 5-cm with galvanized wire mesh steel , according to the instructions of the supervising engineer. \nPrice includes wire mesh,angle beads and corners. \nRender coat (where needed) 2 lime:5 sand 9mm thick.\nFloating coat 2 lime:5 sand 9mm thick.\nFinishing coat 1 lime :3 sand  3-6 mm thick.","Sq.m",2300,null,{"$f":"SUM(D40*E40)","v":0}]
[4.2,"For ceiling, use sand cement render:2 coats 1cm thick,textured coat,main coat with lime,sand and cement.","Sq.m",640,null,{"$f":"SUM(D41*E41)","v":0}]
[4.3,"Supply and  install cement plaster to repair the walls where needed after the demolition phase in building 2. The price includes the demolished walls joints with the remaining ones, filling the old electrical spaces. The price includes all stop beads, angle beads and what is needed all according to instructions given by the engineer.","Job",1,null,{"$f":"SUM(D42*E42)","v":0}]
[4.4000000000000004,"Ditto, but for external ceilings (cantilever slabs). Rate includes supply & installation of stainless steel edge beads (3x3) cm for water dripping & adding water resistant additives such as PG-Bond or equivalent. Rate includes costs of scaffolding.","Sq.m",80,null,{"$f":"SUM(D43*E43)","v":0}]
[null,"To Collection",null,null,null,{"$f":"SUM(F40:F43)","v":0}]
[null,"5- Tiling Works"]
[5.0999999999999996,"Supply and Install full body porcelain floor tiles class \"A\" 60x60x0.8 cm spanish or equivalent. Price includes skirting 7 cm of the same type all according to specifications and to Engineer's instructions. Rate includes use of 2 mm spacers, sand/ cement mortar under tiles and special grouting mortar such as Mapei or equivalent. The price also includes supplying the sand or aggregates under the tiles.  \nThe contractor shall bring samples to the owner to choose from.","Sq.m.",760,null,{"$f":"SUM(D46*E46)","v":0}]
[5.2,"Supply and install Install non-slip spanish or equivalent full body class \"A\" porcelain tiles  for toilet flooring\nThe price includes the mortar 1:3, the fill with required thickness , min 3 cm and composed of cement sand compacted dry mix, pointing with special mortar sika based mix , all as specified and upon supervisors instructions.\nThe contractor shall bring samples to the owner to choose from.","Sq.m.",60,null,{"$f":"SUM(D47*E47)","v":0}]
[5.3,"Ditto, but for the terraces and balconies","Sq.m.",590,null,0]
[5.4,"Supply and Install European manufactured ceramic or porcelain tiles for toilets walls, the price includes mortar 1:3 used for fixing the tiles, grouting with special mortar sika based mix including anti-fungus additive.\nThe contractor shall bring samples to the owner to choose from.\n","Sq.m.",220,null,0]
[5.5,"Window sills:\nSupply and install local first choice marble polished and rounded 3cm thick. Average width 45-cm. Rate includes white cement mortar and filling all edges with white cement. All according to drawings and instructions given by the engineer.","M.r",70,null,0]
[5.6,"Ditto, but 15 cm wide for the balconies and terraces edges ","M.r",240,null,{"$f":"SUM(D51*E51)","v":0}]
[5.7,"Supply & install first choice local marble polished & rounded 3cm thick steps according to dimensions shown on attached drawings. Rate includes white cement mortar & grouting. Tread size (330 mm wide x 30 mm thick) with riser (140 mm high x 20 mm thick) and panel trapezoidal shaped as shown in drawings (size 140/310 mm high x 15 mm thick) and chamfered (30 x 30) mm water protection edge. Measurement will be in metre run for stair tread only and includes tread, riser, panel and water edge.","M.r",80,null,0]
[5.8,"Stone stairs, landings and thresholds:\nSupply and install first choice Matabbeh stone stairs, Sur Mein or equivalent, treads & risers for external stairs. \na) Treads :  3-cm thick with risers and skirting at 2 -cm thicknes. Measeurement will be for horizontal (tread) length only and includes price of  risers and pointing with white cement mix as requested by engineer.","M.r",10,null,0]
[5.7,"Supply & install first choice local marble polished & rounded 2 cm thick for the drinking fountain as per the detailed drawing. The price includes the vertical marble supports ever 100 cm. Rate includes all needed for fixing in addition to perimeter 30 mm chamfered edge frame and also internal side along the wall. The price includes all the cutting and holes and the filling with white cement at the edges. The price also includes supplying and installing perforated galvanized steel leaves under the top with the hinges and the locks. All according to the detailed drawings and instructions given by the engineer.","Job",1,null,{"$f":"SUM(D54*E54)","v":0}]
[null,"To Collection",null,null,null,{"$f":"SUM(F46:F54)","v":0}]
[null,"6- Carpentery"]
[null,"All items shall be supplied according to measurments taken in site.\nEach item's price shall include the wood painting with the color chosen by the engineer."]
[6.1,"Supply and  install wooden doors 45mm thick with net opening size 90x210 cm from plywood 5mm thick  and  covered with  veneer plywood  wood to be specified by the engineer, and  solid  frame from  oak  wood, and  all as per drawings, price shall  include fixing ironmongery, three stainless steel hinges per  leaf  of a door, price includes also  supply and install locks, handles, cylinders type domicil or equivalent, and  all have to be approved by the engineer. The price includes the door safety rubber guard at the hinge. The price also includes louvers for the bathroom doors at the bottom of the door with dimensions 80x30 cm. All according to engineer's instructions.","No.",30,null,{"$f":"SUM(D58*E58)","v":0}]
[6.2,"Ditto, but with net opening size 100x210 cm for the handicapped. The price inlcudes the push bars and all the items as per regulations.","No.",2,null,{"$f":"SUM(D59*E59)","v":0}]
[6.3,"Collector cupboards: Supply & install plywood/ formica wooden cupboards for collectors including all accessories, hinges, small handle and frame to be fixed inside walls. ","Sq.m.",6,null,{"$f":"SUM(D60*E60)","v":0}]
[6.4,"Supply and install trespa partitions thickness 13 mm for the bathrooms from Manal company or european or equivalent.  The price includes the doors. The contractor shall provide a catalogue. The color of the partitions shall be chosen by the engineer. The price includes the hinges, handles, locks domicil or equivalent. All according to instructions given by the engineer.","Sq.m.",50,null,{"$f":"SUM(D61*E61)","v":0}]
[null,"To Collection",null,null,null,{"$f":"SUM(F58:F61)","v":0}]
[null,"7- Metal & Glass Works"]
[null,"Steelworks"]
[7.1,"Supply & install steel balustrade for balconies and terraces as per drawings. The price includes all the welding, screws, and all accessories required. Color is determined by the supervisor engineer. Height from floor is 110 cm. All according to the detailed drawings and as per instructions given by the engineer.","M.r",90,null,{"$f":"SUM(D65*E65)","v":0}]
[7.2,"Ditto, but height 200 cm","M.r",150,null,0]
[7.3,"Supply and install 90 cm high galvanized steel balustrade for the staircase from 2\" horizontal pipe and the top and bottom and 1\" vertical pipes every 20 cm. The price includes all the connections such as bolts, metal parts and welding. The price also includes painting the balustrade with a color chosen by the engineer. all work must be done according to drawings and instructions given by the engineer.","M.r",30,null,0]
[7.4,"Metallic Security Window Grilles:\nSupply and install metallic security grilles on windows, 16x16mm solid steel profiles 24x6mm flat steel + flat steel plate including fixing, welding anchorage in stone and/or concrete. The price includes the painting works of the steel with one primer, and one layer undercoat and two layers hammerite with the color chosen by the engineer.","Sq.m",100,null,0]
[7.5,"Steel tube rail for staircase: Supply and install stainless steel, 2\" diameter pipe, 6 mm thick to be fixed on staircase wall as shown in the drawings. The rate includes all accessories & special pieces such as T's & bends …etc, also fixing to walls with special round wall covers.The price includes the painting works of the steel with one primer, and one layer undercoat and two layers hammerite with the color chosen by the engineer.","M.r",30,null,0]
[7.6,"Supply & install multi-lock door, all component doors for emergency exits & wherever specified by the engineer with the following dimensions:\nDoor net opening size (100 x 210) cm. Contractor to provide original manufacturer catalogues for selection of approved sample by engineer. Doors to include push-bar for emergency as per manufacturer's specifications. ","No.",23,null,0]
[7.7,"Metallic Cabinets"]
[7.8,"Supply and install factory made metallic cabinet  doors + frames like Palraz or equivalent with all necessary accessories, hinges and locks. The price includes the signs and warnings on the cabinets. All according to instructions given by the engineer.","Sq.m",10,null,{"$f":"SUM(D72*E72)","v":0}]
[7.9,"Supply and install steel fencing consisting of 4x4 cm hollow square sections 3mm thick every 100 cm welded with a 10x10x0.5 cm plate fixed to the coping with special bolts. The sections are connected with two sections of the same dimensions at the top and the bottom. 1x1 cm square full steel bars every 15 cm to be welded to the frame. The bars shall be bended outside as per detailed drawing. The price includes the painting works of the steel with one primer, and one layer undercoat and two layers hammerite with the color chosen by the engineer. The price includes all the welding, bolting and all necessary works to complete the job. All according to instructions given by the engineer.","Sq.m",100,null,{"$f":"SUM(D73*E73)","v":0}]
[7.1,"Supply and install a steel staircase as per drawings h=900 cm. The steps shall be 30 cm wide and 4 mm thick rough steel. The steps shall be fixed to 120x60x3 mm I section. The price inlcudes fixing the beams to the building wall with 20x20 cm plates with thickness 8 mm with four screws 12 mm. the price includes the landings. The landings shall be supported by 20x20x8 steel columns fixed to the ground with 30x30x8 plates screwed with 4 bolts. The price includes the balustrade at h=90 cm from the step. The balsutrade is a 14 mm diameter pipe every 12 cm. The price includes the painting works of the steel with one primer, and one layer undercoat and two layers hammerite with the color chosen by the engineer. The price includes all neccessary items and works to complete the job like screws, bolts, welding, plates, angles cutting..etc. All according to drawings and instructions given by the engineer.","Job",1,null,{"$f":"SUM(D74*E74)","v":0}]
[7.11,"Ditto, but staircase 340cm high between the third floor and the roof.","Job",1,null,{"$f":"SUM(D75*E75)","v":0}]
[7.12,"Supply and install double steel sheet, plain metal, electrically operated gate size (4.0X2.0) m composed of  two sided 2mm thick metal sheets and steel hollow section main supports (10X10) cm with built in pedestrian gate size (2.0X0.9) m. Rate includes steel channel fixed into ground for gate sliding. Also included in the price are two motors for automatic control, German origin or equivalent. Rate also includes painting with Hemarite paint according to specifications.","Job",1,null,{"$f":"SUM(D76*E76)","v":0}]
[7.13,"Aluminum Works"]
[7.14,"Supply & install aluminium windows, profile 7000 (3 tracks) or equivalent in heavy gauge, polyester powder coated aluminium sections including all two sided structural glazing silicon systems, cover plates, double glazing glass (4-6-4) mm & glazing accessories, insulation, ironmongery, fittings as required, damp proofing to facades & all associated works. Colour to be specified by engineer.","Sq.m",100,null,{"$f":"SUM(D78*E78)","v":0}]
[7.15,"Ditto, but dry keep profile 4500","Sq.m",5,null,{"$f":"SUM(D79*E79)","v":0}]
[7.17,"Supply and install an aluminum sheets for façade. The aluminum sheets shall be CNC routed as per drawings and details. The price includes the steel structure to be fixed on the building that consists of 10x10 cm hollow square columns and beams. Then a 5x5 cm aluminum profile mesh every 150 cm in both directions shall be connected to the 10x10 profiles with special brackets connected with screws. Then the aluminum sheets must be fixed to the profiles. The price includes installing the name of the school letter made with alcabond with the requested color. All according to the detailed drawings. The contractor shall provide shopdrawings for approval prior the works. The color to be determinded by the engineer. The price includes all the brackets, steel and aluminum profiles, the sheets, welding, screws, bolts and all accessories. The price also includes painting the steel structure with one layer primer, and one layer undercoat and two layers hammerite with the color chosen by the engineer. the price includes installing rubber between the aluminum profile and the steel. The price includes bending the sharp edges of the panels. The price also includes the scaffolding. All works are done according to drawings and details and according to instructions given by the engineer.","Sq.m",210,null,{"$f":"SUM(D80*E80)","v":0}]
[7.18,"Supply and install white anodized Aluminum, maintenance door (Spring Type) with lock, to be installed for the shafts. The price includes opening in the block if needed, complete as specified and as shown on drawing:","Sq.m",4,null,{"$f":"SUM(D81*E81)","v":0}]
[7.19,"Supply and install tempered glass partitions with thickness 12 mm. The price includes all the connections and aluminum elements to fix the glass and making sure it resists the vibrations. The price also includes a stainless steel frame for the partition. The price also includes the sandblasted strips if needed. All works must be done according to instrucitons given by the engineer.","Sq.m",20,null,{"$f":"D82*E82","v":0}]
[null,"To Collection",null,null,null,{"$f":"SUM(F65:F82)","v":0}]
[null,"8- Doors & Windows For Sealed Rooms "]
[8.1,"Doors: Supply and install special doors for sealed rooms as per local regulations and specifications. Door leaf size: (80X200) cm. Price shall include all needed material and works for complete job. ","No.",4,null,{"$f":"SUM(D85*E85)","v":0}]
[8.1999999999999993,"Windows: Supply and install special  windows) for sealed rooms as per local regulations and specifications. Window  size: (100X100) cm. Price shall include all needed material and works for complete job.\nThe price includes the steel frame with the leaves and the aluminum special window.","No.",4,null,{"$f":"SUM(D86*E86)","v":0}]
[8.3000000000000007,"Vents: Supply and install special steel vents for sealed rooms as per local regulations and specifications. Vent sizes 2 vents Ø 4\" and one vent 8\". Price shall include all needed material and works for complete job. Each unit measurement includes 3 vents.","Unit",4,null,{"$f":"SUM(D87*E87)","v":0}]
[8.4,"Maintain the existing shelter windows, doors and vents in building 2. The price includes repairing all the accessories if needed and replace the handles, rubber, hinges, locks if needed. The price also includes remoing and changing the cover of the door. The price includes painting the vent's steel, and the window shutters.","Job",1,null,{"$f":"SUM(D88*E88)","v":0}]
[null,"To Collection",null,null,null,{"$f":"SUM(F85:F88)","v":0}]
[null,"9- Roofing, Waterproofing & Expansion Joints "]
[9.1,"TOILETS AND BALCONIES:\nApply two coats of a waterproofing slurry like Sika top-Seal 107 with its two components liquid and powder or equivalent , on a clean dry surface. The application should be done according to the manufacturer's instructions.   "]
["a)","toilets","Sq.m",60,null,{"$f":"SUM(D92*E92)","v":0}]
["b)","balconies","Sq.m",65,null,{"$f":"SUM(D93*E93)","v":0}]
[9.1999999999999993,"ANGLE  FILLET"]
[null,"- Cement and sand for angle fillet on toilete floors/walls (70 x 70 ) mm","M.r",95,null,{"$f":"SUM(D95*E95)","v":0}]
[null,"Roof:"]
[9.3000000000000007,"Supply and pour light weight (foam) concrete screed , minimum 30 mm thick laid to falls including forming angle fillets at perimeter & all abutments. Rate includes steel trowelled (helicopter) finish.","Sq.m",500,null,{"$f":"SUM(D97*E97)","v":0}]
[9.4,"Supply and install 5 mm thick torch applied SBS modified bituminous water-proofing membrane ; skirting with additional mineral chipping faced membrane tucked into grooves 15-cm above screed level & pointed with mastic. Rate includes primer & 10- cm overlap for rolls. Measurement is for horizontal area only .","Sq.m",500,null,{"$f":"SUM(D98*E98)","v":0}]
[null,"To Collection",null,null,null,{"$f":"SUM(F91:F98)","v":0}]
[null,"10- Painting"]
[10.1,"Prepare surface, clean and  apply two coats of putty followed by three coats of Tambour Supercryl 2000 on gypsum board, block and concrete walls. The  price shall  include all materials such as the calcimo, putty, and joint paper. All according to instructions given by the engineer. (color chosen by engineer)","Sq.m",2600,null,{"$f":"SUM(D101*E101)","v":0}]
[10.199999999999999,"Apply one coat of Polisid paint from Tambour on the ceilings. The price includes putty reparation if needed. All according to instructions given by the engineer. (color chosen by engineer)","Sq.m",800,null,{"$f":"SUM(D102*E102)","v":0}]
[10.3,"Supply and apply exterior paint on the walls where indicated on drawings. The price includes applying one coat of special white primer on the wall and then applying the exterior paint water resistant with the color chosen by the engineer.","Sq.m",190,null,{"$f":"SUM(D103*E103)","v":0}]
[null,"To Collection",null,null,null,{"$f":"SUM(F101:F103)","v":0}]
[null,"11- Gypsum"]
[11,"The  contractor shall, when pricing the  rates of this bill,  take into  consideration including and  allowing for the  costs or expenses of all requirements stipulated in the   preambles, drawings and  technical specification of the  tender."]
[null,"The contractor, shall when pricing the rates of this bill take into consideration all costs occuring upon him and including and allowing for the cost and expenses of all requirements stipulated in the special specifications, preambles, drawings and general specifications of the contract, and whatever necessary to complete the work according to engineer’s requirements and specifications."]
[null,"The price includes:"]
[null,"a. All the accessories needed "]
[null,"The price includes:\nAll the steel, aluminum studs and sections, all the screws, rock wool and all necessary items to complete the job.\nAll is done according to drawings and details. "]
[11.1,"Supply & install 600x 600mm Ecophone Focus Frost square edge board ceiling tiles  with  all required hangers, supports and  connected with  T24  main runners and  cross T and  L and  Z edges, works include supply  and   install  Fire  resistant gypsum board  MR,  for false ceilings edges with studs at every 400mm in both  directions including decorations, forms, trims with  all connections supports, fixing, putty sealer, wire  mesh and  special angles for edge of boards and  all  necessary accessories needed for the best  completion of works. The  price  shall  include for all opening of air condition grills, light  fixture and the like. Measurment are taken including the the 60x60 ecophone and the gypsum margins.","Sq.m",200,null,{"$f":"SUM(D111*E111)","v":0}]
[11.2,"Supply & install galvanized perforated metal strip 30cm wide, panels to be installed on a metal structure which includes L & Z on the  parameter wall  made of painted aluminum .works include supply  and   install  Moisture  resistant gypsum board  MR,  for false ceilings edges with studs at every 400mm in both  directions including decorations, forms, trims with  all connections supports, fixing, putty sealer, wire  mesh and  special angles for edge of boards and  all  necessary accessories needed for the best  completion of works. The  price  shall  include for all opening of air condition grills, light  fixture and the like.","Sq.m",55,null,{"$f":"SUM(D112*E112)","v":0}]
[11.3,"Supply and install red gypsum fire resistant boards for ceiling as per drawings and where indicated. The price includes supplying and installing all the steel studs every 40 cm in both directions. The price includes all the angles, studs, screws or whatever needed to complete the work. The price also includes the openings for the vents and the HVAC dampers and grilles. Measurments are taken horizontslly only. All works are done according to drawings and instructions given by the engineer.","Sq.m",85,null,{"$f":"SUM(D113*E113)","v":0}]
[11.4,"Supply and install green gypsum boards for the space above the windows (electric aluminum shutter location) The price includes installing the studs at the length of the opening with the required angles and items to complete the job. Measurments are taken for the length of the window. All according to instructions given by the engineer.","M.r",45,null,{"$f":"SUM(D114*E114)","v":0}]
[null,"To Collection",null,null,null,{"$f":"SUM(F107:F114)","v":0}]
[null,"12- Asphalt works"]
[12.1,"Supply and install asphalt pavement where indicated on drawings. The price also includes laying bituminous primer and then bitumin asphalt layer. The price includes compacting the asphalt with compacting roller machine according to the local codes. The price also includes the linings paint of the parking, the boundaries and playground with acrylic emulsion road marking paint. All according to drawings and instructions given by the engineer.","Sq.m",1000,null,{"$f":"SUM(D117*E117)","v":0}]
[12.2,"Supply and well compact base coarse Class \"A\" until reaching the required level (ground floor slab on grade level). Price to include watering, leveling and compacting to min 95% field density to comply with modified proctor test ( AASHTO Density test T -80) complete as per specifications. The price includes compacting with compaction rollers","Sq.m",450,null,{"$f":"SUM(D118*E118)","v":0}]
[null,"To Collection",null,null,null,{"$f":"SUM(F117:F118)","v":0}]
[null,"13- Mechanical works"]
[null,"Preambles"]
[null,"1. All outlets, inlets, piping, conduits should be labeled (numbers & tags) according to standards.\n2.Mechanical works including all required materials, accessories, labor, all as required according to drawings, specifications and bill of quantities.\n3. Cutting, and pining including all making good\n4. Forming, or cutting holes, chases, channels etc. in reinforced concrete structure, block works or existing walls.\n5. Plugging and screwing\n6. Closing the openings and spaces around the ducts, pipes or conduits using fire retardant material.\n7. Preparation of   workshop drawings before starting works &  built drawings after completion\n8. Testing mechanical installations including providing and personal necessary for testing, providing written reports & certificates by authorized test engineer approved by consultant.\n9. Testing firefighting works  including providing and personal necessary for testing, providing written reports & certificates by authorized fire fighting  & \"Teken\" inspector  approved by consultant .\n10. All piping used should be fire retardant and color coded.\n11.Providing Operating and Maintenance Manual; Mechanical and Electrical Services including as made drawings.\nAll mechanical Works should be according to code (Local Codes) "]
[1,"Sanitary System"]
[13.1,"Manhole"]
[null,"Supply and install concrete manhole of internal diameter 60 cm ,and (50-100) cm depth according to the required level, 10cm thick plain concrete for walls and base, slab, with cast iron cover with frame 50cm opening, Cast Iron cover of weight not less than 50 kg, and bearing capacity load for the cover not less than 8 ton for side walk and 25 ton all other manholes. Including excavation, backfilling . painting with bitumen (2 layers) and all necessary works to comply with drawings and specifications and the engineer instructions.","No",8,null,{"$f":"E125*D125","v":0}]
["13.1.1","Ditto but Ø 80cm, depth ( 100-190cm ) .and 15cm thick concrete for walls and base. ","No",1,null,{"$f":"E126*D126","v":0}]
[13.2,"Wash Basin"]
["13.2.1"," Supply and Install White Vitreous China counter type wash basin, of approximate 50x35cm. Complete with PVC waste fittings and siphon, valves, waste pipes to nearest floor trap, taps or mixer, connection to water distribution, traps, and any other necessary parts as Specification and as directed by Eng. Price includes supplying and installing 6 mm, soap holders white color vitreous china (15cmx15cm), with all connections, and fittings .","No",9,null,{"$f":"E128*D128","v":0}]
["13.2.2","Supply and install white White Vitreous China , semi pedestal  type, wash basin of approximate size 50x35cm, complete with mixer, PVC  waste fittings and siphon, angle valve, trap, plug and chain, all associated water supply pipes, 40x60cm mirror,  waste pipes connected to nearest floor traps and brackets screwed to concrete or block work, sealing joint to worktop or wall with mastic sealant, complete as specified and as shown on drawing.","No",6,null,{"$f":"E129*D129","v":0}]
["13.2.3","Ditto, but for handicapped wash basin, Including all necessary fittings and accessories in addition to AISI304 hand reel and grub all as  shown on drawings and in specifications. Price includes supplying and installing 40x60cm mirror and gear tap.      \n","No",2,null,{"$f":"E130*D130","v":0}]
[13.3,"European Toilet"]
["13.3.1","Supply and Install porcelain wall mounted water closet white color. The Price shall include all fixation and hanging bracket, 6-LT Capacity .(concealed) cistern ,valves ,fitting, hard solid seat and 13mm stop angle valve , chrome plated 13mm hose , and accessories , side 1 m length 13mm chrome plated hand shower for W.C (heavy duty ) with spring nozzle outlet and all other required materials, including connection to drainage system and water system including 3/8” angle valve and paper holder. All to be done as per drawings, specifications and the approval of the Engineers.","No",14,null,{"$f":"E132*D132","v":0}]
["13.3.2","Ditto, but for handicapped toilet, including all necessary, fittings and accessories AISI304 movable handle and fixed handle as shown on drawings and in Specifications","No.",2,null,{"$f":"E133*D133","v":0}]
[13.4,"Lab Sink"]
[null,"Supply and Install single bowl anti acid Lab. White Sink (20 cm. Deep), Size (55x35cm). (Class A and approved by Israeli Standards Institution).  Acid proof tap installed in laboratory. Complete with all necessary valves, connection to water distribution, fittings, anti chemical waste pipes to the nearest trap, and any other necessary parts and accessories to complete works per specifications and as directed by the engineer.\n","No",4,null,{"$f":"E135*D135","v":0}]
[13.5,"Drinking Fountain"]
[null,"Supply and install chrome plated water taps (single lever type) for outside drinking fountain as shown on drawings. Rate shall include connections to water pipes and pvc drain pipes and siphon, fixation in walls as per drawings and engineer's instructions.","No",6,null,{"$f":"E137*D137","v":0}]
[13.6,"Water Cooler"]
[null,"Supply and install electrical AISI316 water cooler of capacity 40 L/h with drinking chrome plated fountain of approved  quality  with hermetic  type compressor complete with all required fixing connection, water supply and 2\" drainage to the nearest floor trap. as shown in drawings, specifications and approval of supervisor engineer.","No",5,null,{"$f":"E139*D139","v":0}]
[13.7,"Eye Wash and Shower Head"]
[null,"Supply and install stainless steel eye wash and shower head station unit, consisting of two GS-Plus spray heads to deliver water in a soft, wide spray rather than a solid, narrow stream,  Spray heads have \"flip top\" dust cover, internal flow control and filter to remove impurities from water flow. 1/2\" IPS stay open ball valve permits \"hands free\" operation,  complete with cold water mixer of the same type, HDPE waste fittings with siphon, angle valves, trap, plug and chain, chromium plated water tap, all associated water supply pipes, and brackets screwed to concrete or block work, sealing joint to worktop or wall with mastic sealant, An eye wash unit should permanently connected to a continual source of potable water, Heads and flushing fluid units must be protected from airborne contaminants.","No",1,null,{"$f":"E141*D141","v":0}]
[13.8,"Floor Trap"]
[null,"Supply and Install 4” PVC Floor Trap. “With  Quality approval Tag” Price to include siphon to be fixed in reinforced concrete, (15*15) cm double chrome plated cover one grated and one-closed, waste pipes to the nearest manhole and all other fittings needed to comply with specifications and as  directed by Engineer.   ","No",26,null,{"$f":"E143*D143","v":0}]
["13.8.1","Ditto, but 4\"/2\" FD","No",7,null,{"$f":"E144*D144","v":0}]
["13.8.2","Ditto, but 20x20cm FD for  roof rain water","No",8,null,{"$f":"E145*D145","v":0}]
[13.9,"Clean Out"]
[null,"Supply and Install (Clean Out), of Drainage Network. “With Quality approval Tags” In size and location shown in the drawings and where necessary, including  (15*15)cm chrome plated screwed in cove and all needed to complete work as specification and directed by Eng.","No",12,null,{"$f":"E147*D147","v":0}]
[13.1,"Water Gutter"]
[null,"Supply, install and test of heavy duty cast iron 200x20x20cm (of load 25 Tons) drain gutter (of approved quality) . Complete with sand filter and 8\"/4\" floor trap with strainer including connections with drainage discharge pipes, in addition to backfilling, anchor, according to drawings and engineer's instructions.","No",5,null,{"$f":"E149*D149","v":0}]
[13.11,"UPVC Pipes"]
[null,"Supply and install  UPVC pipes ,  for soil, waste rain water and vent sewage system , including casting into concrete or block work, jointing, fittings, excavation & back filling (where needed). Rate shall include jointing, penetration in walls and slabs, connection to existing sewage network, in addition to fixing to concrete or block work, works should also include checking & inspection of the existing sewage pipes network  in addition to works needed to connect the pipe with the existing municipality sewage network, as follows:"]
["13.11.1","2” PVC internal diameter","M.r",30,null,{"$f":"E152*D152","v":0}]
["13.11.2","3” PVC internal diameter","M.r",30,null,{"$f":"E153*D153","v":0}]
["13.11.3","4” UPVC (SN4) internal diameter","M.r",150,null,{"$f":"E154*D154","v":0}]
["13.11.4","6” UPVC (SN8)internal diameter","M.r",85,null,{"$f":"E155*D155","v":0}]
[2,"Water System"]
[13.12,"Galvanized Steel Pipes (GS) Pipes"]
[null,"Supply, install, test and commission galvanized steel  pipes for feed water pipe from water assembly unit to water collectors. The price include fixing supports to concrete, block work or metalwork, excavation and backfilling where needed), coring in walls or slabs (where needed), fittings, valves, pressure regulator, inside insulation cement mortar lining and outside polyethylene insulation for underground pipes, automatic vents & all required accessories. The price any civil works required to complete the job, as specified and as shown on drawing:"]
["13.12.1"," Ø 1.5\" ","M.r",50,null,{"$f":"E159*D159","v":0}]
["13.12.2"," Ø 1.25\" ","M.r",20,null,{"$f":"E160*D160","v":0}]
["13.12.3"," Ø1\"","M.r",25,null,{"$f":"E161*D161","v":0}]
["13.12.4"," Ø3/4\"","M.r",10,null,{"$f":"E162*D162","v":0}]
["13.13","Ditto, but galvanized steel pipe water for hot and return water system, including 13mm thick vidoflex thermal insulation with 10cm wide plastic wrap. The price includes protection of the exposed pipes by covering with 0.4mm thick galvanized steel cladding, complete with all fittings, valves, and wrapping with 10cm wide plastic wrap."]
["13.13.1"," Ø 1.25\" ","M.r",50,null,{"$f":"E164*D164","v":0}]
["13.13.2"," Ø1\"","M.r",70,null,{"$f":"E165*D165","v":0}]
["13.13.3"," Ø3/4\"","M.r",110,null,{"$f":"E166*D166","v":0}]
["13.13.4"," Ø1/2\"","M.r",60,null,{"$f":"E167*D167","v":0}]
[13.14,"Water Assembly "]
[null,"Supply and install fire and water assembly station. The price includes all accessories and fittings needed for installation as per Israeli Standards, which includes, but not limited to, butterfly valves, stop valves, switches, check valves, vents, pressure gauges, pressure relief valves, prefilter and sediment filter.... The price should also include water proof galvanized steel cabinet of suitable dimensions with lock, all according to engineer's instructions and local civil defense requirements.","L.S",1,null,{"$f":"E169*D169","v":0}]
[]
[13.15,"Water Collectors"]
[null,"Supply and install copper collectors,  for domestic cold and hot water system, with all necessary fittings, nipples, nuts, unions, quick shut off valves (of the same type as collector) on main and on each eye of collector, brass fittings adapter, automatic vents, fasteners ..etc of approved quality. Rate includes metallic steel cupboard (of good quality) with double doors. The price should also supplying and installing 16mm plastic pipes,  with its 25mm plastic conduits with 5cm thick concrete layer to fixture units outlets, copper elbows recessed in walls and all civil works needed, all according to plans and engineer’s instructions and as follows:"]
["13.15.1","Water Collectors: size 1 1/4” (9 eyes) quantity 2 for cold water and size 3/4”(7 eyes)  for hot water.","L.S",1,null,{"$f":"E173*D173","v":0}]
["13.15.2","Water Collectors: size 1” (7 eyes) for cold water and size 3/4”(2 eyes)  for hot water.","L.S",3,null,{"$f":"E174*D174","v":0}]
["13.15.3","Water Collectors: size 1” (9 eyes) for cold water and size 3/4”(3 eyes)  for hot water.","L.S",1,null,{"$f":"E175*D175","v":0}]
["13.15.4","Water Collectors: size 3/4” (6 eyes) for cold water and size 3/4”(1 eyes)  for hot water.","L.S",1,null,{"$f":"E176*D176","v":0}]
["13.15.5","Water Collectors: size 3/4” (6 eyes) for cold water.","L.S",1,null,{"$f":"E177*D177","v":0}]
[13.16,"Hot Water Storage Cylinder"]
[null,"Supply and install Hot water storage cylinder (calorifier),500 liters capacity with electric element capacity 3 KW including single heating coil, complete as specified with galvanized steel base, built-in thermometer, temperature sensor, drain valve, non return valve at the cold water inlet to the heater, built in thermometer, pressure and temperature relief valves, chrome plated gate valves at inlets and outlets, pipes connections of the cylinder, all according to drawings and Engineer’s approval. The cylinder should include the following minimum outlet connections:","No.",1,null,{"$f":"E179*D179","v":0}]
[null,"* 3/4\" feed water connection."]
[null,"* 1 1/4\" supply hot water water connection"]
[null,"* 1 1/4\" return hot water connection "]
[null,"* 2X1 1/4\" pipes connections to heat pump"]
[null,"* 1/2\" connection for thermometer."]
[null,"* 1\" supply feed water pipe connection"]
[null,"* 1/2\" connection for thermometer."]
[null,"* 3/4\" supply feed water pipe connection"]
[null,"* 1 1/2\" drain connection with valve"]
[null,"* 1/2\" flange connection for electric element"]
[13.17,"Heat Pump"]
[null,"Supply, install, test and commission of outdoor weather proof heat pump unit for domestic hot water system, complete with reinforced concrete base of 15cm depth with 2” cork insulation shock absorber and all fittings and accessories needed to complete the job like, flexible joints, strainer, balance valve on pipe inlet, stop valves, pressure and temperature gauges, temperature sensor, regulator, valves, in addition to electrical and control connections, in addition to  water pipe connections,.. all according to drawings specifications and Engineer’s approval.","No.",1,null,{"$f":"E191*D191","v":0}]
[null,"20 kW Hot Water Heating Capacity"]
[null,"Outdoor winter design temperature= 0°C"]
[null,"Inlet/Outlet Water Temp.: 55oC/65oC"]
[13.18,"Circulating Pumps"]
[null,"Supply and install, and commission circulating hot water pumps set  with direct motor drive (4-pole, 1450rpm motor speed, IP55) through a flexible coupling, complete with control panel, two gate valves one at the suction side and one at the discharge side and pressure gauges on both sides of pump and check valve connected on the discharge side and a strainer on the suction side in addition to 0.8mm thick galvanized steel canopy installed above pumps for weather protection. The price shall include steel base, with the electrical connections with the electric panel and all control wires, and over load protection and magnetic contactor for each pump as shown in drawings, and approval of supervisor engineer. The specifications of pumps are as follows:"]
["13.18.1","Hot water circulation pumps 10m head & 0.6L/s flow rate (One Duty, One Standby) with expansion tank 100 liter capacity.","Set",1,null,{"$f":"E197*D197","v":0}]
["13.18.2","Return hot water  pumps 7m head & 0.6L/s flow rate (One Duty, One Standby)","Set",1,null,{"$f":"E198*D198","v":0}]
[3,"Fire Fighting System"]
[13.19,"Fire Pipes"]
[null,"Supply, install, test and commissioning galvanized seamless steel pipe Ø 4'', according to ASTM A53 grade (A) schedule (40). including pipe hangers and supports tube with all required and approved protections for underground installation, including excavation for trench, backfilling, compaction, UPVC pipe Ø 4'' for sleeves, painted red color , fittings , connections, valves and all other accessories required.","M.r",80,null,{"$f":"E201*D201","v":0}]
["13.19.1","Ditto but pipe Ø 3''.","M.r",40,null,0]
["13.19.2","Ditto but pipe Ø 2''.","M.r",80,null,0]
["13.19.3","Ditto but pipe Ø 1 1/2''.","M.r",10,null,0]
["13.19.4","Ditto but pipe Ø 1 1/4''.","M.r",10,null,0]
["13.19.5","Ditto but pipe Ø 1''.","M.r",130,null,0]
["13.19.6","2\" pvc for ZCV drain.","M.r",40,null,0]
[13.2,"Fire Cabinets"]
[null,"Supply and install 80*100*30 cm steel fire hose reel cabinet, 25mm diam., 25m length, 12 bar ,mounted on swinging reel, an angle isolation valve inside the cabinet, a jet nozzle with an incorporated cock, and 25m long textile hose, 2inch landing valve, Each cabinet should be supplied with Hose Linen 2X15 m length, and approved sticker from  Oven Red Color Cabinet. As shown in drawings, and approval of supervisor engineer. with all necessary pipes, connections and fittings.","No.",6,null,0]
[13.21,"Sprinklers"]
[null,"Supply & install automatic fire nozzle sprinkler for exposed installation chrome plated, receded quick response  T=68Cْ U.L/F.M approved, with all required fittings and accessories needed for connections with fire pipes:"]
["13.21.1"," (k=5.6)Sprinkler head pendent type","No.",34,null,{"$f":"E212*D212","v":0}]
["13.21.2"," (k=5.6)Sprinkler head side type.","No.",36,null,{"$f":"E213*D213","v":0}]
[13.22,"Zone Control Valve"]
[null,"75 mm  diameter zone control valve including alarm switch, test and drain valves, sight glass, fitting and all accessories, monitored gate valves & orifice plate.","No.",3,null,{"$f":"E215*D215","v":0}]
[13.23,"Alarm Check Valve"]
[null,"100 mm  diameter Mechanical sprinkler alarm check valve including alarm check valve, gong, drain and test valves, retard chamber, pressure gauges at inlet/outlet alarm stop valve, strainer, pressure switch, etc., complete as specified and shown on drawings.","No.",1,null,{"$f":"E217*D217","v":0}]
[13.24,"Fire Extinguisher "]
["13.24.1","Supply and install Portable Fire Extinguisher of 3kg Dry Powder with wall brackets, and all works needed to complete the job.","No.",2,null,0]
["13.24.2","Supply and install portable fire extinguishers 3kg HCFC type, complete with the operating charge from the factory. The brackets shall be specifically supplied for the extinguisher type and size concerned, full vision pressure gauge, discharge hose and heavy duty drawn steel cylinder with hard scratch resistant finish. \n","No.",9,null,0]
[13.25,"Siamese Connection"]
[null,"Supply and install 2X4” Coupling Siamese Connection for use of civil defense, of approved type. The price includes all accessories and fittings needed to connect to fire fighting pipe, all according to civil defense requirements and approval of supervisor engineer.","No.",1,null,0]
[13.26,"Fire Hydrant"]
[null,"Supply, install, test & maintain fire hydrant connection assembly, It should be gunmetal with two outlets, each outlet shall consist of 65 mm diameter instantaneous  male coupling and non-return valve and shall be attached to the dry riser .Price includes supply and install of 3\" underground valve with conical manhole and long opening key. Price includes 1/2\" tap beside each fire hydrant other accessories needed for complete installation and operating condition (manufactured by approved factor, subject to supervisor engineer approval).","No.",1,null,{"$f":"E224*D224","v":0}]
[4,"Gas System"]
[13.27,"Cylinders"]
[null,"Supply, install, and test LPG gas cylinder of 48kg capacity. The price includes 15cm concrete base, painted steel cabinet with galvanized mesh at front of the cabinet. The price should also include pressure regulating valve, fittings, stop valves, pressure gauge in addition to connection to copper pipes.","No.",2,null,{"$f":"E227*D227","v":0}]
[13.28,"Gas Pipes"]
[null,"Supply, install, and test copper gas pipes,  including insulation and sleeves with all fittings needed, from cylinders location till the locations of gas collectors and then to terminal points of gas points inside the floors. The price should also include galvanized fasteners and supports, excavation, with all accessories and fittings needed to complete the job, all according to drawings and engineer's instruction. The sizes of the pipes are as follows:"]
["13.28.1","size   12mm  diameter","M.r",30,null,{"$f":"E230*D230","v":0}]
["13.28.2","size  8mm  diameter","M.r",30,null,{"$f":"E231*D231","v":0}]
[13.29,"Gas Collectors"]
[null,"Supply and install copper gas collectors, of approved quality with all necessary fittings, nipples, shut off valves on main and branch pipes, solenoid valve, gas detector with electric valve,  pressure regulating valve.....etc. The price should include painted steel cabinet, of approved quality, all  according to plans and engineer’s instructions, and as follows:"]
["13.29.1","5/8”(16mm) Gas Collector (4 eye)","No.",1,null,{"$f":"E234*D234","v":0}]
[5,"HVAC System"]
[13.3,"Ducts"]
["13.30.1","Supply and install galvanized metal sheet duct, with thickness according to ASHREA Standards, for Ventilation system. The price includes all joints, sealant compound, and all necessary accessories, galvanized hangers, hooks, volume dampers, penetration in walls according to plans & engineer’s instructions.","Sq.m",100,null,{"$f":"D237*E237","v":0}]
["13.30.2","Ditto, but with flange duct for smoking extraction system of 1.25 mm thick steel.","Sq.m",20,null,{"$f":"D238*E238","v":0}]
[13.31,"Exhaust Grilles"]
[null,"Supply and install white anodized Aluminum, exhaust air  grilles with registers. The price includes flexible duct connections to grilles according to the following sizes:"]
["13.31.1","20cm dia.","No.",3,null,{"$f":"E241*D241","v":0}]
["13.31.2","15cm dia.","No.",20,null,{"$f":"E242*D242","v":0}]
[13.32,"Supply & Return Diffusers and Grilles"]
[null,"Supply and install white anodized Aluminum, supply and return diffusers with registers. The price includes openings in gypsum boards, insulated galvanized adapter with necks and connections to flexible ducts, 20x20boxes, supply and install of flexible ducts from the grilles and diffusers to indoor air conditioner units, according to the following sizes:"]
["13.32.1","125cm X 20cm (Bar Grille)","No.",3,null,{"$f":"E245*D245","v":0}]
["13.32.2","100cm X 20cm (Bar Grille)","No.",3,null,0]
["13.32.3","90cm X 20cm (Bar Grille)","No.",15,null,0]
["13.32.4","75cm X 20cm (Bar Grille)","No.",8,null,0]
["13.32.5","65cm X 20cm (Side Grille)","No.",16,null,0]
["13.32.6","50cm X 20cm (Side Grille)","No.",5,null,0]
["13.32.7","45cm X 20cm (Side Grille)","No.",2,null,0]
["13.32.8","30cm X 30cm (4-way Diffusers)","No.",4,null,0]
[13.33,"Return Grilles"]
[null,"Supply and install white anodized Aluminum, return air  grilles, including openings in gypsum boards, as follows:"]
["13.33.1","90cm X 20cm (Bar Grille)","No.",1,null,{"$f":"E255*D255","v":0}]
["13.33.2","50cm X 20cm (Side Grille)","No.",8,null,{"$f":"E256*D256","v":0}]
["13.33.3","60cm X 60cm (Ceiling Grille)","No.",1,null,{"$f":"E257*D257","v":0}]
[13.34,"Smoke Grilles"]
[null,"Supply and install white anodized Aluminum, smoke grilles with registers, shall be of (fire retardant type 400 °C/ 2 hrs). The price includes openings in gypsum boards, insulated galvanized adapter with necks according to the following sizes:"]
["13.34.1","45cm X 45cm","No.",1,null,{"$f":"E260*D260","v":0}]
["13.34.2","30cm X 30cm","No.",2,null,{"$f":"E261*D261","v":0}]
["13.34.3","23cm X 23cm","No.",1,null,{"$f":"E262*D262","v":0}]
[13.35,"Maintenance Door"]
[null,"Supply and install white anodized Aluminum, maintenance door (Spring Type) with lock, to be installed below ducted air conditioning unit. The price includes opening in gypsum boards, complete as specified and as shown on drawing:"]
[null,"60cm X 60cm","No.",19,null,{"$f":"E265*D265","v":0}]
[13.36,"Inline Fans"]
["13.36.1","Supply and install ducted in-line exhaust air fan, of low noise sound level based on 1450rpm. The price shall include galvanized adaptor, flexible connection, vibration isolators, and volume damper. The price shall also include control and electrical connections,  complete as specified and as shown on drawing:"]
["13.36.1.1"," 60 L/s Air Flow @ 0.15\" Static pressure","No.",2,null,{"$f":"E268*D268","v":0}]
["13.36.1.2","90 L/s Air Flow @ 0.15\" Static pressure","No.",1,null,{"$f":"E269*D269","v":0}]
["13.36.1.3","260 L/s Air Flow @ 0.15\" Static pressure","No.",1,null,{"$f":"E270*D270","v":0}]
["13.36.1.4","200 L/s Air Flow @ 0.15\" Static pressure","No.",1,null,{"$f":"E271*D271","v":0}]
["13.36.2","Ditto, but the fan is of fresh air type, complete also with outdoor grille including filter (efficiency Not less than 70%), installed at fan intake:"]
["13.36.2.1","95 L/s Air Flow @ 0.15\" Static pressure","No.",1,null,{"$f":"E273*D273","v":0}]
["13.36.2.2","215 L/s Air Flow @ 0.15\" Static pressure","No.",1,null,{"$f":"E274*D274","v":0}]
["13.36.2.3","190 L/s Air Flow @ 0.15\" Static pressure","No.",1,null,{"$f":"E275*D275","v":0}]
["13.36.2.4","135 L/s Air Flow @ 0.15\" Static pressure","No.",1,null,{"$f":"E276*D276","v":0}]
["13.36.2.5","245 L/s Air Flow @ 0.15\" Static pressure","No.",1,null,{"$f":"E277*D277","v":0}]
[13.37,"Wall Mounted Fans"]
[null,"Supply and install wall mounted  exhaust air fan, of low noise sound level with its shutter and insect mesh from the manufacturer, based on 1450rpm. The price shall include opening in wall, painted steel frame, control and electrical connections,  complete as specified and as shown on drawing:"]
["13.37.1","50 L/s Air Flow ","No.",5,null,{"$f":"E280*D280","v":0}]
["13.37.2","125 L/s Air Flow ","No.",1,null,{"$f":"E281*D281","v":0}]
["13.37.3","135 L/s Air Flow ","No.",1,null,{"$f":"E282*D282","v":0}]
[13.38,"Smoke Fan"]
[null,"Supply and install ducted in-line exhaust air fan, based on 1450rpm for smoke system, shall be of (fire retardant type 400 °C/ 2 hrs). The price shall include galvanized adaptor, fire rated flexible connection, vibration isolators. The price shall also include control and electrical connections,  complete as specified and as shown on drawing:"]
["13.38.1","850 L/s Air Flow @ 0.30\" Static pressure","No.",1,null,{"$f":"E285*D285","v":0}]
[13.39,"Condensate Drain Pipes"]
[null,"Supply and install 2\" pvc (pn6) condensate drain pipes, for air conditioning drainage system. The price includes all necessary fittings needed for installation, in addition to pipes connections to floor traps. ","M.r",80,null,{"$f":"E287*D287","v":0}]
[null,"To collection",null,null,null,{"$f":"SUM(F125:F287)","v":0}]
[null,"14- Electrical works"]
[null,"General Provisions of Electrical Works"]
[14.1,"Preambles"]
[null,"Rates of electrical installations shall includes for:-"]
[]
[null,"1. All outlets, switches, cables, wires should be labeled ( numbers & tags) according to specification section 16075 Electrical identifications and related IT standards attached."]
[null,"2. Electrical works including all required materials, accessories, labor, all as required according to drawings, specifications and bill of quantities."]
[null,"3. Cutting, and pining including all making good"]
[null,"4. Forming, or cutting hales, chases, channels etc.in reinforced concrete structure, block works or existing walls."]
[null,"5. Plugging and screwing"]
[null,"6. Preparation of   workshop drawings before starting works &  built drawings after completion"]
[null,"7. Testing electrical installations including providing and personal necessary for testing, providing written reports & certificates by authorized test engineer approved by consultant ."]
[null,"8. Testing fire alarm works  including providing and personal necessary for testing, providing written reports & certificates by authorized fire alarm  & \"Teken\" inspector  approved by consultant ."]
[null,"9. All conduits used should be fire retardant and color coded."]
[null,"10.Providing Operating and Maintenance Manual; Mechanical and Electrical Services including as made drawings."]
[null,"All Electrical Works should be according to  Electric Code (Local Codes) "]
[14.2,"Raceways"]
[null,"Cable Trays, and Ladders "]
[null,"Supply, install, test and commission cable trays, cable ladders, cable truncking and sleeves as per drawings and specifications complete with supports, fixing devices, separators, clamps, end caps, draw wires, elbows, joints, branches, reducers, offsets,...etc.with all  accessories needed to complete the work as shown on drawing, as per the preamble, the specifications and supervision engineer's requirements."]
["14.2.1","20/10 cm cable Mesh (covered 1 mm thickness galvanized metal sheets ) for low voltage, power, and data cables to be used vertically/ horizontally  for electrical installations","M.r",40,null,{"$f":"D308*E308","v":0}]
["14.2.2","20/10 cm metal trunk with cover  (covered 1 mm thickness galvanized metal sheets ) for power and low voltage  cables to be used vertically/ horizontally  for electrical installations","M.r",40,null,{"$f":"D309*E309","v":0}]
[14.3,"Underground outdoor / indoor Electrical works"]
[null,"Builders works "]
[]
["14.3.1","6\" flexible conduit Copra for main electrical intake from JDECO pillar up to main electrical panel","M.r",35,null,{"$f":"D313*E313","v":0}]
["14.3.2","3\" flexible conduit Copra for main telephone line from communication cabinet  up to main telephone box inside project","M.r",50,null,{"$f":"D314*E314","v":0}]
["14.3.3","2\" PVC conduit or Copra","M.r",50,null,{"$f":"D315*E315","v":0}]
[14.4,"Cables and Wires - 2nd phase"]
[null,"600 Volt Cables"]
[null,"Supply, install, test and commission 600/1000 volts N2XY cables with all required accessories for proper installation and operation conduits, cable lugs, ties... etc.  as shown on drawing, as per the preamble, the specifications and supervision engineer's requirements."]
["14.4.1","4x150mm2 N2AXY+ 70mm2 copper pvc E.C.C.","M.r",30,null,{"$f":"D319*E319","v":0}]
["14.4.2"," 5X10 mm² /N2XY","M.r",40,null,0]
["14.4.3"," 5X6 mm² /N2XY ","M.r",70,null,0]
["14.4.4"," 5X4 mm² /N2XY ","M.r",70,null,0]
["14.4.5"," 5X2.5 mm² /N2XY  Control","M.r",50,null,0]
["14.4.6","4x70mm2 N2AXY+ 50mm2 copper pvc E.C.C.","M.r",60,null,0]
["14.4.7","16mm2 pvc earthing wire","M.r",100,null,0]
["14.4.8","10mm2 pvc earthing wire","M.r",50,null,0]
["14.4.9","10mm2 bear twistesd  earthing wire","M.r",100,null,0]
[14.5,"Main Distribution Equipment"]
["14.5.1","(KWH Board with LV )"]
["14.5.2","Supply, Install and Connect KWHM DB. Price to include metal panel board oven painted 2mm thickness, molded case Main circuit breakers MCCB  with minimum breaking capacity of 25 K.A, miniature circuit breaker bus bars, Indication lamps, space for KWH meter and low voltage side 25cm & all accessories as per drawings and specifications. Price also to include main earth bus bar , UPVC conduits 2Ø4\" and the main feeder \"cables as required\" from KWHM DB to MDB as drawings and specifications with all necessary civil works.","L.S.",1,null,{"$f":"D330*E330","v":0}]
["14.5.3","FM200 automatic system to be included.","L.S.",1,null,{"$f":"D331*E331","v":0}]
["14.5.4","Main Distribution Board (MDB) with LV"]
[null,"Supply, Install and Connect Main Distribution Board.(MDB ). In Basement Floor.  Price to include metal panel board oven painted 2mm thickness, all cables required to connect MDB with all DB's  molded case Main circuit breakers MCCB  with minimum breaking capacity of 15 K.A, miniature circuit breaker MCB with minimum breaking capacity of 6 K.A., bus bars, volts & amps- Measuring instruments, and low voltage side 20cm and low voltage side 25cm. Also to include main earth bus bar as drawings and specifications with all necessary circle works. and power factor DB as required from electricity company.","L.S.",1,null,{"$f":"D333*E333","v":0}]
[14.6,"Electricity Manholes"]
[null,"Supply, installing, connecting, and testing 80x80x80 cm electrical manholes including heavy-duty cast iron 8 Ton, cover according to drawings and specifications.","No.",4,null,{"$f":"D335*E335","v":0}]
[14.7,"Sub-distribution boards"]
[null,"Supply, Install and Connect the panel Boards factory made oven painted 2mm thickness.  Price to include the enclosure, miniature breakers (not less than 6 K.A.cap.) bus bars and all accessories including feeders XLPE Cables and PVC pipes as Shown on drawings and specifications.  "]
["14.7.1","FFDB","L.S",1,null,{"$f":"D338*E338","v":0}]
["14.7.2","SFDB","L.S",1,null,0]
["14.7.3","THDB","L.S",1,null,0]
["14.7.4","B2DB","L.S",1,null,0]
["14.7.5","COMDB","L.S",1,null,0]
["14.7.6","SCLDB","L.S",1,null,0]
[14.8,"Sockets and outlets"]
[null,"Supply ,Install, numbering and Connect the following Socket Outlets points including (3*2.5mm2 ) wires, conduits, sockets, draw boxes and all accessories up to DB as per drawings and specifications."]
["14.8.1","a. 3 pin Single-Phase 16 Amp sockets. ","No.",31,null,{"$f":"D346*E346","v":0}]
["14.8.2","b. As item (a) but double socket 16Amp.","No.",80,null,{"$f":"D347*E347","v":0}]
["14.8.3","c. As item (b) but double w/p  socket 16Amp.","No.",20,null,0]
["14.8.4","e. 3 pin single phase 16 Amp socket ( water proof )  with switch with indication lamp for extract fan.","No.",15,null,0]
[]
["14.8.6","g. 2 pole switch with indication light for Hand dryers, fans & doors","No.",5,null,0]
["14.8.7","h. Supply, install, commission and test a Boiler Point. The price include isolating switch with indication lamp, N2XY cables 3*2.5mm2, conduits, and all accessories up to DB as per drawings and specifications and coordination to Mechanical Contractor.","No.",3,null,0]
["14.8.8","i. As item  (b) but with surface mounted box and with Cables 3*2.5mm2 including Galvanized trunks to be installed on the tables ( earthed tables)","No.",1,null,0]
["14.8.9","j.Shutter point & switch ( N2XY Cable 5x2.5 mm2)","No.",10,null,0]
["14.8.10","Preparation for VGA & HDMI point ( 50mm dia conduits, boxes & cables to NVR at server room )","No.",12,null,0]
["14.8.11","CIMA BOX D17 Nisko type including 4 sockets, 2 RJ45 sockets & 1 tel socket.price includes 3x2.5mm2 cable/wires , cat6a, 3pairs 0.6mm2 tel.wire, & conduits","No.",40,null,0]
["14.8.12","supply, install isolating switches 4poles 32A including conduits fire redundant ","No.",11,null,0]
[14.9,"Emergency switch",null,null,null,0]
[null,"Supply, Install and Connect Emergency Switch non returnable ,turn to release  telemecanique type or equivalent rate includes 4*1.5 cable pipes, and all required fittings, connections and accessories as Drawings and specifications","No.",6,null,0]
[14.1,"Lighting Points",null,null,null,{"$f":"D360*E360","v":0}]
[null,"Supply, Install and Connect Lighting Points including Conduits and   (3*1.5/2.5 mm2) Wires up to the DB, Light Switches  and all accessories as per drawings and specifications.","No.",294,null,0]
[14.11,"Lighting Fixtures"]
[null,"Supply, Install and Connect the following Lighting Fixtures , bulbs or tubes ( Osram or Philips 840 ), electronic control gears and all accessories as per  drawings and specifications.  "]
["14.11.1","Lighting fixture 60x60cm recessed mountend- 40w LED 4000K 3600 LM. at least -at false ceiling with the necessary hanging/support ceiling fixing such as NISKO type ref.no.17840208 or approved equivalent.","No.",45,null,{"$f":"D364*E364","v":0}]
["14.11.2","Ditto - but surface mounted with the necessary exposed/external supporting frame ref.no.17840208 or approved equivalent.","No.",31,null,0]
["14.11.3","Lighting fixture 7.5x120cm surface mounted at  ceiling with the necessary support ceiling  fixing such as SUP LED NISKO type 4000k - 36w LED 4000K 2915 LM. at least -ref.no.70080436 or approved equivalent.","No.",63,null,0]
["14.11.4","lighting fixture IP65 40w led surface mounted 4400lm 4000k type utility Technolite ref.no.543022013310 or approved equivalent.","No.",12,null,0]
["14.11.5","flood light  IP65 200w led surface mounted 20000lm 6000k type SMD-PRO NISKO ref.no.17820016 or approved equivalent.","No.",9,null,0]
["14.11.6","flood light  IP65 100w led surface mounted 10000lm 6000k type SMD-PRO NISKO ref.no.17820010 or approved equivalent.","No.",9,null,0]
["14.11.7","Lighting fixture IP65 surface mounted 20w led circular fixed at walls, staircases. Liper type  ref.no.LP-DL25 MAD1-Y or approved equivalent.","No.",14,null,0]
["14.11.8","Lighting fixture IP65 surface mounted 18w led 4000k 1500lm warm white light circular fixed at Bathroom Aqualed Nisko. ref.no.76244018 or approved equivalent.","No.",44,null,0]
["14.11.9","Lighting fixture IP20 recessed mounted 3w led emergency light 180lm 4000k  circular fixed corridors  Aiam led technolite. ref.no.82911 or approved equivalent.","No.",5,null,0]
["14.11.10","Ditto - but surface mounted . ref.no.82913 or approved equivalent.","No.",15,null,0]
["14.11.11","Exit lighting IP20 recessed / surface mounted 1w emergency light 180lm 4000k  circular fixed at corridors \\staircase technolite. ref.no.82915 or approved equivalent.","No.",17,null,0]
["14.11.12","Install Lighting fixture IP20 recessed mounted 3w led emergency light 180lm 4000k  circular fixed corridors  Aiam led technolite. ref.no.82911 or approved equivalent. (item will be supplied by the owner)","No.",30,null,0]
["14.12","Telephone System"]
["14.12.1","1- Supply, install, connect and test Telphone PABEX 2input 10 output including all the boxes, cables, conduits accoeding to Bazeq regulation.the price not including the feez for bazeq co.","No.",1,null,{"$f":"D377*E377","v":0}]
["14.12.2","Telephone Manholes","No.",1,null,{"$f":"D378*E378","v":0}]
[14.13,"Electrical School Bells"]
[null,"Supply, Install and Connect electrical bell 220V include all conduits wires, boxes as on drawings and specifications"]
["14.13.1","a. Indoor 6\" electrical bell","No.",5,null,{"$f":"D381*E381","v":0}]
["14.13.2","b. Outdoor 8\" electrical bell water proof IP65","No.",2,null,{"$f":"D382*E382","v":0}]
["14.13.3","C.    Bell Push Button","No.",2,null,{"$f":"D383*E383","v":0}]
["14.13.4","d. Automatic digital time switch with pulse","No.",1,null,{"$f":"D384*E384","v":0}]
[14.14,"Sound System","."]
[null,"Supply, Install, numbering Connect and commission Sound System, including cables( teldor shielded)  conduits from each loudspeaker to Amplifier, boxes, drew boxes as shown in the drawings. Consisting of :-"]
["14.14.1","a.360w RMS Amplifier system, dual channel, six zone with \"All Call\". rack including  Amplifier ,with built in  DVD and recorder  with prerecorded tones (piano) and daily-weekly go off bill timer unit, tuner, with minimum of 5 microphone inlets & with program timer, note that every components above must be from the same mark. rack cabinet 14U metal tow parts one fixed on the wall and anther movable(double side) with Aluminum and Glass door  for housing the system with fans.& power strip.","L.S",1,null,{"$f":"D387*E387","v":0}]
["14.14.2","b. Microphone with on-off switch, (plug in), with Telescopic stand, and ten meter cord ","No.",1,null,0]
["14.14.3","c. 6-zone call station with all calls Table top microphone goose neck type and extension 10 meter cord with pressing on/off push button.","No.",1,null,0]
["14.14.4","d.  zone selector switch panel same manufacturer with toggle switches matching the number of speakers (min.45 #) with led indication lamps","No.",1,null,0]
["14.14.5","e. 6- 9 watt wall mount loudspeaker with metal grill and evacuation compliant ","No.",30,null,0]
["14.14.6","f. 30 W. Outdoor weatherproof type Horn loudspeaker, install on the roof.","No.",10,null,0]
["14.14.7","g. Microphone socket points price to include PVC conduits, and special cable up to microphone amplifier out let.","No.",2,null,0]
["14.14.8","h. wireless microphone.","L.S",2,null,0]
[14.15,"Earthing System ",null,null,null,{"$f":"D396*E395","v":0}]
[null,"Supply, Install and Connect a complete Earthing System of  (One OHM) ground resistance, including galvanized steel strip 40*4mm welded each 1m with steel structure and  the connection of this system to the MDB by suitable cable and including  3 electrodes with concrete manholes 40*40*40cm and earth wires 1*16mm2, plates, rods, excavation, loop earthing system from MDB to the final DB's including 1*10 SC cables back filling of all pits to obtain the required resistance , and including an inspection pit (Manhole) with concrete cover, and all the accessories as per drawing and specifications. Grounding Resistance is to be measured at MDB.","L.S",1,null,{"$f":"D396*E396","v":0}]
[14.16,"Computer system"]
[null,"Supply, install, connect and numbering, labeling and  testing computer system including conduits. Boxes, wires shielded cable (CAT6A)datwyler cables in separate pipe and cable for each socket and  Tel line 2*2*0.5 from Tel. exchanger, 4 sockets outlets together with isolating switch and all accessories according to drawings, specifications and engineer approval."]
["14.16.1","a. Network socket 3M for CAT6A CABLE  Network Points cat 6A shielded 3M include cabling (Teldor cable) and installation and certificate testing and labeling and all conduits or trunks needed. And computer cable 2m, and patch cable: 0.5 m, 1m, 2m as needed  ( for data and CCTV)","No.",65,null,{"$f":"D399*E399","v":0}]
["14.16.2","b. Brand name Rack cabinet(double side) 19\"  10U depth 60cm with fan cooling unit and power stripe, 3M patch panel 24 port  CAT6A Shielded 10/100/1000MHZ Ethernet type 3M (number of patch panel matching the number of network socket in the school) and straight cables between switch and patch panel with 1/2 U air patch panel female Rj 45 built in for all ports and data socket . for computer lab","L.S",2,null,{"$f":"D400*E400","v":0}]
["14.16.3","Lightning rod system"]
["14.16.4","Supply, install lightning system pulsar45. on stair's roof "]
["14.16.5","the system should protect the building and the area around the building. The price to include a separated earthing system(earth wire 70mm2 isolated, 3 electrodes 19mm2*1.5m in 3 manholes( 60*60*60cm) and  according to manufacture instruction and by the agreement of supervision engineer.  ","L.S",1,null,{"$f":"D403*E403","v":0}]
["14.16.6","Fire alarm System"]
[null,"Preambles"]
[null,"Fire Alarm System shall be UL-FM listed"]
[null,"All works should be according specification of fire alarm system attached to this section"]
[null,"All required materials, accessories, labor, all as required according to drawings, specifications and bill of quantities."]
[null,"Cutting, and pining including all making good"]
[null,"Forming, or cutting hales, chases, channels etc.in reinforced concrete structure, block works or existing walls."]
[null,"Plugging and screwing"]
[null,"Protection of all materials"]
[null,"Labeling"]
[null,"All conduits used should be fire retardant and color coded."]
[null,"Providing all maintenance & operation manuals, training and warranties"]
[null,"Preparing working drawings by authorized Fire Alarm Engineer, testing the works during & after completion  including providing and personal necessary for testing, providing written reports & certificates by authorized fire alarm  & \"Teken\" inspector  approved by consultant ."]
["14.17.1","Fire Alarm System Points"]
["14.17.2","Supply, install, connect, test and commission  addressable fire-alarm system points including   fire retardant conduits, 2*0.8mm fire resistance cables and boxes (850c) and all accessories as per drawings, specifications engineers approval and related codes ."]
["14.17.3","fire alarm system point( smoke,heat,gas,break glass, siren, horn/strobe,...)","No.",74,null,{"$f":"D419*E419","v":0}]
["14.17.4","Supply, install and commissioning addressable fire alarm system 2-loop including all conduits, wires, and all accessories as drawings and specifications and engineer approval"]
["14.17.5","a. Fire alarm control panel addressable  including  back-up Batteries & Charger,auto-dailer. TYPE TELEFIRE ADR7000","L.S",1,null,{"$f":"D421*E421","v":0}]
["14.17.6","b. Smoke detector.","No.",45,null,{"$f":"D422*E422","v":0}]
["14.17.7","c. Heat detector.","No.",2,null,0]
["14.17.8","d. Indoor fire alarm bell with flasher.","No.",12,null,0]
["14.17.9","e. Outdoor weather proof  fire alarm bell with flasher.","No.",2,null,0]
["14.17.10","f. Stand  alone Gas detector.","No.",1,null,0]
["14.17.11","g. Fire alarm breaking  glass unit.","No.",12,null,0]
["14.17.12","h. control module (For Electrical Panels fireFM200 activation)","No.",1,null,0]
["14.17.13","i. Fire Alarm repeater","No.",1,null,0]
["14.17.14","j. Tripping module inside MDB for MCCB's . ","No.",1,null,0]
["14.17.15","k. Indication Lamp","No.",4,null,0]
["14.17.16","Supply & install evacuation emergency alarm sound system including all the battiers, charger,cards,& all necessary accories such as EVAX 50w telefire including the 1w loudspeakers, cables, conduits, boxes, according to drawings, fire defence regulation, test , operation and final submission","L.S",1,null,{"$f":"D432*E432","v":0}]
["14.17.17","e. 1-3 watt wall mount loudspeaker with metal grill and evacuation compliant ","No.",32,null,{"$f":"D433*E433","v":0}]
[14.18,"Supply, install  and connect the low voltage DB side 25cm & in the same high of power DB. price to include the enclosure and all accessories (including feeders) as per drawings and specifications."]
["14.18.1","a.MLV","No.",1,null,{"$f":"D435*E435","v":0}]
["14.18.2","b.FFLV","No.",1,null,{"$f":"D436*E436","v":0}]
["14.18.3","c.SFLV","No.",1,null,{"$f":"D437*E437","v":0}]
["14.18.4","d.THLV","No.",1,null,{"$f":"D438*E438","v":0}]
["14.18.5","e.B2LV","No.",1,null,{"$f":"D439*E439","v":0}]
[14.19,"CCTV System"]
[null,"Supply ,Install, numbering and connect a complete digital monitoring system  including conduits, wires Cat6A STP cable ,( as network points)  and all accessories according to plans specifications, engineer's instructions."]
["14.19.1","a- Brand Name Network Video Recorder for 32 IP Camera License, Rack mounted, professional, Two 4TB Hard  disk. 3xlogic or equivalent and LED Monitor 60”","No.",1,null,{"$f":"D442*E442","v":0}]
["14.19.2","b-Day/Night Dome Brand Name Indoor LED POE IP Camera 3MPixel Vari focal include cabling and ducting\n  weather proof & vandal proof color IR camera wall & ceiling mounted, with IR up to30 meters Ultra Vision CCD ,& low illumination: 0.1 lux @ F1.21(0 lux with IR )\nAnti vandal housing","No.",15,null,{"$f":"D443*E443","v":0}]
["14.19.3","c- -Day/Night  Brand Name out door LED POE IP Camera 3MPixel Vari focal include cabling and ducting\n  weather proof & vandal proof color IR camera wall & ceiling mounted, with IR up to30 meters Ultra Vision CCD ,& low illumination: 0.1 lux @ F1.21(0 lux with IR )\nAnti vandal housing","No.",18,null,{"$f":"D444*E444","v":0}]
[14.21,"Electricity Connection "]
[null,"The contractor shall feed the building with electrical power, according to the drawings, specifications, and site location, engineer approval and according to the Electrical Authority instructions. The price shall include pipes, ducts, manholes, poles, skirting, cables, civil works and all accessories to be completed working job excluding connecting costs and fees to the electrical authority.(Electrical authority fees to be paid by owner)","L.S",1,null,"not included"]
[14.22,"Intrusion Alarm System"]
["14.22.1","Supply , install , connect , test ,operate and commission an instruction control panel  Visonic / Bosch  type (16 zone ) microprocessor based multi pin code and tampered including of all equipment and accessories , low voltage power supply unit with rechargeable stand by unit, GSM holder for mobile calling. incorporation a 1000 event log integral digital communicator , interface for Ethernet based IP connection and modem , the rate includes also Keypad, fire rated cable connected to MDB… In accordance with the requirements of the specifications and as shown on drawings .","No.",2,null,{"$f":"D448*E448","v":0}]
["14.22.2","Supply , install . test , and commission a dual tech anti mask type movement sensor including all conduits fixing , boxes ,and high quality cables . According specification and drawings ","No.",53,null,{"$f":"D449*E449","v":0}]
["14.22.3","Supply , install . test , and commission a door magnet  including all conduits fixing , boxes ,and high quality cables . According specification and drawings ","No.",1,null,0]
["14.22.4","Supply , install , test , and commission internal siren including all conduits fixing boxes , and cables , According to specification and drawings .","No.",1,null,0]
["14.22.5","Supply , install , test , and commission as above but external siren .","No.",2,null,0]
["14.22.6","Supply , install , test and commission a programmable auto dialer , GSM holder , connection with with all needed wiring programming etc. .. as per specifications and drawings ","No.",1,null,{"$f":"D453*E453","v":0}]
["14.22.7","Keypad ","No.",2,null,0]
[null,"To collection",null,null,null,{"$f":"SUM(F308:F454)","v":0}]

{"sheet":"Summary","index":1,"n_rows":26,"n_cols":3,"rows_kept":26,"cut":false,"hidden":false,"merged":[[1,0,1,2],[0,0,0,2]]}
["Remodeling and Rehabilitation Works (civil, finishing and\nelectrical-mechanical works) for Sur Baher School in East\nJerusalem"]
["SUMMARY \tOF \tBILLS \tOF\t QUANTITIES"]
[]
["Section","Works","Totals (US$) "]
[1,"Demolition works",{"$f":"Items!F20","v":0}]
[2,"Concrete works",{"$f":"Items!F30","v":0}]
[3,"Blockwork & Stonework",{"$f":"Items!F38","v":0}]
[4,"Plastering",{"$f":"Items!F44","v":0}]
[5,"Tiling Works",{"$f":"Items!F55","v":0}]
[6,"Carpentry works",{"$f":"Items!F62","v":0}]
[7,"Metal & Glass Works",{"$f":"Items!F83","v":0}]
[8,"Sealed room works",{"$f":"Items!F89","v":0}]
[9,"Roofing, Waterproofing works",{"$f":"Items!F99","v":0}]
[10,"Painting works",{"$f":"Items!F104","v":0}]
[11,"Gypsum Works",{"$f":"Items!F115","v":0}]
[12,"Asphalt works",{"$f":"Items!F119","v":0}]
[13,"Mechanical works",{"$f":"Items!F288","v":0}]
[14,"Electrical works",{"$f":"Items!F455","v":0}]
[null,"Grand Total (US$) - Excluding Value Added Tax (VAT) ",{"$f":"SUM(C5:C18)","v":0}]
[]
[]
[null,"TOTAL PRICE (in words):"]
[null,"Company Name:"]
[null,"Authorized Signatory Name & Title:"]
[null,"Signature / stamp:"]
[null,"Date:"]